[Event "Queens Festival Europe 2022"]
[Site "Tornelo"]
[Date "2022.06.19"]
[Round "3.4"]
[White "Gueci, Tea"]
[Black "Steffensen, Elena"]
[Result "1-0"]
[ECO "A42"]
[WhiteElo "2248"]
[BlackElo "2044"]
[Annotator "TA"]
[PlyCount "93"]
[EventDate "2022.06.19"]
[EventType "swiss"]
[EventCountry "NET"]
[SourceTitle "playchess.com"]
[Source "ChessBase"]
[SourceQuality "1"]
[TimeControl "180+2"]

{[%evp 10,93,36,15,12,0,0,0,0,-69,-69,-172,-81,-76,-15,-38,47,22,15,17,33,20,91,77,192,195,258,206,208,209,213,196,279,10,8,20,37,37,37,39,54,55,68,68,131,132,138,136,149,148,309,157,300,300,631,450,651,576,5143,852,836,780,993,985,975,945,913,750,29982,29983,29983,29984,29984,29985,29986,29980,29987,29988,29989,29990,29994,29995,29995,29996,29996,5156]} 1. Nf3 {[%emt 0:00:02]} g6 {[%emt 0:00:07]} 2. c4 {[%emt 0:00:05]} Bg7 {[%emt 0:00:02]} 3. Nc3 {[%emt 0:00:01][%cal Bb1c3,Bc3e2,Be2d4][%mdl 32]} e5 {[%emt 0:00:07]} 4. e4 {[%emt 0:00:05]} d6 {[%emt 0:00:10]} 5. d4 {[%emt 0:00:04][%cal Bd2d4,Bd4d5][%mdl 32]} Nc6 {[%emt 0:00:14]} 6. d5 {[%emt 0:00:02]} Nd4 {[%emt 0:00:02] A42: Modern Defence: Averbakh Variation.} 7. Nxd4 {[%emt 0:00:09]} exd4 {[%emt 0:00:02]} 8. Ne2 {[%emt 0:00:04] [#]} Nf6 $146 {[%emt 0:00:19] The position is equal.} ({Predecessor:} 8... c5 9. dxc6 bxc6 10. Nxd4 Qa5+ 11. Bd2 Qb6 12. Bc3 Ne7 13. Be2 O-O 14. O-O Rd8 {1-0 (73) Navrotescu,A (2247)-Mazanchenko,D (2161) Chess.com INT 2021}) 9. Qd3 {[%emt 0:00:05]} ({White should try} 9. Qxd4 $11 O-O 10. Bg5) 9... O-O $1 $15 {[%emt 0:00:04]} 10. g3 {[%emt 0:00:29] [#]} (10. Bg5 $15) 10... Re8 {[%emt 0:00:12]} (10... Nxe4 $1 $19 {[%mdl 512] and Black stays clearly on top.} 11. Qxe4 Re8) 11. Bg2 $17 {[%emt 0:00:02] [#]} c6 {[%emt 0:00:12]} (11... Nxe4 $1 $17 12. Bxe4 Qe7) 12. O-O {[%emt 0:00:08]} (12. dxc6 {is interesting.} Ng4 13. Nxd4 d5 14. c7) 12... b5 {[%emt 0:00:11]} (12... c5 $15) 13. Nxd4 {[%emt 0:00:12]} (13. dxc6 {looks sharper.} bxc4 14. Qxd4 Nxe4 15. Qxc4 d5 16. Qb5) 13... bxc4 {[%emt 0:00:03]} 14. Qxc4 {[%emt 0:00:00]} cxd5 {[%emt 0:00:02]} 15. exd5 {[%emt 0:00:04][%cal Be4d5,Bd5c6,Bc6c7][%mdl 32]} Bb7 {[%emt 0:00:05]} (15... Qb6 $11 {keeps the balance.}) 16. Nc6 {[%emt 0:00:04]} Bxc6 {[%emt 0:00:04]} (16... Qb6 $16) 17. dxc6 $18 {[%emt 0:00:00] And now c7 would win.} ({Resist} 17. Qxc6 $6 Rc8 18. Qa4 Qd7 $14) 17... Rc8 {[%emt 0:00:03]} (17... d5 $142 18. Qc2 Qb6) 18. Bf4 {[%emt 0:00:12] aiming for Rad1. This bishop pair is nice.} d5 {[%emt 0:00:01]} 19. Qa4 {[%emt 0:00:06]} Qb6 {[%emt 0:00:05]} 20. c7 {[%emt 0:00:23] Black must now prevent Rac1.} Nh5 {[%emt 0:00:06]} (20... g5 $142) 21. Bxd5 $2 {[%emt 0:00:17]} (21. Rfe1 $18 Rf8 22. Rac1 (22. Bxd5 Nxf4 23. Qxf4 Qxc7 $14) 22... Nxf4 23. Qxf4) 21... Nxf4 $11 {[%emt 0:00:03]} 22. Qxf4 {[%emt 0:00:01] The board is on fire.} Qxc7 {[%emt 0:00:06]} (22... Rxc7 {feels hotter.} 23. Rab1 Be5 24. Qe3 Qxe3 25. fxe3 Kg7) 23. Qxc7 {[%emt 0:00:28]} Rxc7 {[%emt 0:00:03]} 24. Rac1 {[%emt 0:00:00]} Rxc1 {[%emt 0:00:04]} 25. Rxc1 {[%emt 0:00:00]} Bxb2 $14 {[%emt 0:00:02][%mdl 4096] Endgame KRB-KRB} 26. Rc7 {[%emt 0:00:02][%csl LRa7,LRf7]} Rf8 {[%emt 0:00:11]} (26... Kh8 $14) 27. Rxa7 $16 {[%emt 0:00:04] White is more active.} Bd4 {[%emt 0:00:01]} 28. Rd7 {[%emt 0:00:04][%cal Od5f7]} Bc5 {[%emt 0:00:05]} 29. a4 {[%emt 0:00:05] Threatens to win with a5.} Kg7 $2 {[%emt 0:00:02] This move loses the game for Black.} (29... Rb8 $16 {is a better defense.} 30. Rc7 (30. Bxf7+ Kf8 $18) (30. Rxf7 Kh8 $18) 30... Bd4 31. Rxf7 (31. Bxf7+ Kf8 $18) 31... Kh8) 30. Kg2 {[%emt 0:00:05]} (30. a5 $18) 30... Kf6 {[%emt 0:00:02]} (30... Bb6 $16 31. f4 Kh6 32. Bxf7 Ra8) 31. a5 $18 {[%emt 0:00:04]} Ke5 $2 {[%emt 0:00:02]} (31... Re8 32. Rc7 (32. Rxf7+ Ke5 $18) (32. Bxf7 Ra8 $16) 32... Bd6) 32. a6 {[%emt 0:00:08]} f5 {[%emt 0:00:10]} (32... g5 $142 33. Bc6 Ke6) 33. Bf3 {[%emt 0:00:05] Strongly threatening Rd5+.} f4 {[%emt 0:00:04]} 34. a7 {[%emt 0:00:02]} (34. Rd5+ $142 Ke6 35. Rxc5) 34... Bxa7 {[%emt 0:00:02]} 35. Rxa7 {[%emt 0:00:00]} fxg3 {[%emt 0:00:02]} 36. hxg3 {[%emt 0:00:01] KRB-KR} h5 {[%emt 0:00:02]} 37. Ra5+ {[%emt 0:00:03]} Kf6 {[%emt 0:00:04]} 38. Ra6+ {[%emt 0:00:02]} Kg5 {[%emt 0:00:02]} 39. Be4 {[%emt 0:00:02][%csl Ge4][%cal Ra6g6] White mates.} Rg8 {[%emt 0:00:03]} 40. f4+ {[%emt 0:00:03][%cal Bf2f4,Bf4f5][%mdl 32]} Kh6 {[%emt 0:00:05]} 41. f5 {[%emt 0:00:01]} Re8 {[%emt 0:00:07]} 42. Rxg6+ {[%emt 0:00:03]} Kh7 {[%emt 0:00:01]} 43. Kf3 {[%emt 0:00:02]} h4 {[%emt 0:00:03]} 44. gxh4 {[%emt 0:00:02]} Ra8 {[%emt 0:00:02]} 45. Bxa8 {[%emt 0:00:02]} Kh8 {[%emt 0:00:01]} 46. Kg4 {[%emt 0:00:04]} Kh7 {[%emt 0:00:02]} 47. Kg5 {[%emt 0:00:02] Weighted Error Value: White=0.41/Black=0.72} 1-0

[Event "Queens Festival Europe 2022"]
[Site "Tornelo"]
[Date "2022.06.19"]
[Round "3.4"]
[White "Cassi, Elisa"]
[Black "Bordin, Silvia"]
[Result "1/2-1/2"]
[ECO "C89"]
[WhiteElo "1999"]
[BlackElo "1991"]
[Annotator "NA RC"]
[PlyCount "69"]
[EventDate "2022.06.19"]
[EventType "swiss"]
[EventCountry "NET"]
[SourceTitle "playchess.com"]
[Source "ChessBase"]
[SourceQuality "1"]
[TimeControl "180+2"]

1. e4 {[%emt 0:00:02]} e5 {[%emt 0:00:04]} 2. Nf3 {[%emt 0:00:02]} Nc6 {[%emt 0:00:01]} 3. Bb5 {[%emt 0:00:02]} a6 {[%emt 0:00:02]} 4. Ba4 {[%emt 0:00:01]} Nf6 {[%emt 0:00:03]} 5. O-O {[%emt 0:00:02]} Be7 {[%emt 0:00:03]} 6. Re1 {[%emt 0:00:01]} b5 {[%emt 0:00:02]} 7. Bb3 {[%emt 0:00:01]} O-O {[%emt 0:00:00]} 8. c3 {[%emt 0:00:06]} d5 {[%emt 0:00:02]} 9. exd5 {[%emt 0:00:01]} Nxd5 {[%emt 0:00:01]} 10. Nxe5 {[%emt 0:00:03]} Nxe5 {[%emt 0:00:00]} 11. Rxe5 {[%emt 0:00:01]} c6 {[%emt 0:00:01]} 12. d4 {[%emt 0:00:01]} Bd6 {[%emt 0:00:01]} 13. Re1 {[%emt 0:00:02]} Qh4 {[%emt 0:00:02]} 14. g3 {[%emt 0:00:01]} Qh3 {[%emt 0:00:00]} 15. Qf3 {[%emt 0:00:04]} Bg4 {[%emt 0:00:04]} 16. Qg2 {[%emt 0:00:01]} Qh5 {[%emt 0:00:01]} 17. Be3 {[%emt 0:00:03]} Rae8 {[%emt 0:00:03]} 18. Nd2 {[%emt 0:00:02]} Re6 {[%emt 0:00:13]} 19. Bd1 {[%emt 0:00:16]} Bxd1 {[%emt 0:00:05]} 20. Raxd1 {[%emt 0:00:03]} Rfe8 {[%emt 0:00:01]} 21. Qf3 {[%emt 0:00:04]} Qxf3 {[%emt 0:00:09]} 22. Nxf3 {[%emt 0:00:02]} Nxe3 {[%emt 0:00:01]} 23. fxe3 {[%emt 0:00:04]} Rxe3 {[%emt 0:00:02]} 24. Rxe3 {[%emt 0:00:14]} Rxe3 {[%emt 0:00:00]} 25. Kf2 {[%emt 0:00:01]} Re8 {[%emt 0:00:04]} 26. Rd2 {[%emt 0:00:11]} g6 {[%emt 0:00:06]} 27. d5 {[%emt 0:00:09]} Bc5+ {[%emt 0:00:07]} 28. Kf1 {[%emt 0:00:14]} Be3 {[%emt 0:00:06]} 29. Rd3 {[%emt 0:00:12]} cxd5 {[%emt 0:00:03]} 30. Rxd5 {[%emt 0:00:02]} Kf8 {[%emt 0:00:08]} 31. Rd7 {[%emt 0:00:16]} Re7 {[%emt 0:00:13]} 32. Rd8+ {[%emt 0:00:05]} Re8 {[%emt 0:00:02]} 33. Rd7 {[%emt 0:00:02]} Re7 {[%emt 0:00:01]} 34. Rd8+ {[%emt 0:00:07]} Re8 {[%emt 0:00:01]} 35. Rd7 {[%emt 0:00:03]} 1/2-1/2

[Event "Queens Festival Europe 2022"]
[Site "Tornelo"]
[Date "2022.06.19"]
[Round "3.5"]
[White "Sikorova, Olga"]
[Black "Smith, Olivia"]
[Result "1-0"]
[ECO "A24"]
[WhiteElo "2173"]
[BlackElo "2039"]
[Annotator "TA"]
[PlyCount "101"]
[EventDate "2022.06.19"]
[EventType "swiss"]
[EventCountry "NET"]
[SourceTitle "playchess.com"]
[Source "ChessBase"]
[SourceQuality "1"]
[TimeControl "180+2"]

{[%evp 21,101,86,87,82,90,60,60,57,81,68,139,50,116,51,70,43,48,34,36,7,10,10,7,10,10,10,12,0,6,-119,0,0,0,0,0,0,0,-12,-4,-20,0,0,0,0,0,0,119,125,172,111,180,120,584,379,484,49,48,45,48,42,102,38,50,30,268,251,12823,6510,29976,29977,6801,6415,29972,29969,29980,29981,29982,29983,29980,115,115,115]} 1. c4 {[%emt 0:00:02]} Nf6 {[%emt 0:00:08]} 2. g3 {[%emt 0:00:02]} g6 {[%emt 0:00:02]} 3. Bg2 {[%emt 0:00:01]} Bg7 {[%emt 0:00:02]} 4. Nc3 {[%emt 0:00:01]} d6 {[%emt 0:00:01]} 5. e4 {[%emt 0:00:01]} e5 {[%emt 0:00:03]} 6. Nge2 {[%emt 0:00:01]} O-O {[%emt 0:00:02]} 7. O-O {[%emt 0:00:02]} Be6 {[%emt 0:00:28]} 8. d3 {[%emt 0:00:03]} Qd7 {[%emt 0:00:02]} 9. f4 {[%emt 0:00:04]} Bh3 {[%emt 0:00:04]} 10. f5 {[%emt 0:00:02]} Bxg2 {[%emt 0:00:03]} 11. Kxg2 {[%emt 0:00:02]} c6 {[%emt 0:00:06]} 12. h3 {[%emt 0:00:03] A24: English Opening vs King's Indian: Lines without ...Nc6.} d5 {[%emt 0:00:01]} 13. g4 {[%emt 0:00:13] [#] Strongly threatening exd5. has lost popularity (13.cxd5).} dxe4 $146 {[%emt 0:00:03]} ({Predecessor:} 13... h6 14. Ng3 dxc4 15. dxc4 Qxd1 16. Rxd1 Na6 17. Be3 Rfd8 18. a3 Nd7 19. Na4 Bf8 {1-0 (48) Gomez,J (2481)-Hesham,A (2336) Ho Chi Minh City 2017}) 14. dxe4 {[%emt 0:00:02] White is slightly better.} Qxd1 {[%emt 0:00:08]} 15. Rxd1 {[%emt 0:00:05]} Na6 {[%emt 0:00:10]} (15... h6 $14) 16. Be3 {[%emt 0:00:06]} (16. g5 $1 $16 {[%cal Rg5f6]}) 16... gxf5 {[%emt 0:00:05]} (16... Rfd8 $14) 17. gxf5 {[%emt 0:00:03]} (17. exf5 $16 {And now g5 would win.} Rfd8 18. a3) 17... Rfd8 $14 {[%emt 0:00:11]} 18. Kf3 {[%emt 0:00:03] White is more active.} Nb4 {[%emt 0:00:07]} 19. Rxd8+ {[%emt 0:00:28]} Rxd8 {[%emt 0:00:02]} 20. Rd1 {[%emt 0:00:01]} (20. Rg1 $5 {[%cal Re3h6]}) 20... Rxd1 {[%emt 0:00:08]} 21. Nxd1 {[%emt 0:00:01]} Nxa2 {[%emt 0:00:15]} 22. Bxa7 {[%emt 0:00:04]} Nd7 {[%emt 0:00:12]} 23. Be3 {[%emt 0:00:05]} Nb4 {[%emt 0:00:05][%cal Ba2b4,Bb4d3,Bd3e1,Be1c2,Bc2d4][%mdl 32]} 24. Nec3 {[%emt 0:00:08]} Nd3 {[%emt 0:00:04]} 25. b4 {[%emt 0:00:14]} (25. Na4 $11) 25... Bf8 {[%emt 0:00:05]} (25... Nxb4 $17 26. Nf2 Nc2) 26. b5 $11 {[%emt 0:00:02]} Ne1+ {[%emt 0:00:18]} 27. Kf2 {[%emt 0:00:07]} Nc2 {[%emt 0:00:02]} 28. bxc6 {[%emt 0:00:14]} bxc6 {[%emt 0:00:02]} 29. Ba7 {[%emt 0:00:04]} Nc5 {[%emt 0:00:11]} 30. Nb2 {[%emt 0:00:43]} Nd4 {[%emt 0:00:08]} 31. Bxc5 {[%emt 0:00:10]} Bxc5 {[%emt 0:00:02][%mdl 4096] Endgame KBN-KNN} 32. Nd3 {[%emt 0:00:04][%csl LRc5,LRe5]} Bb6 {[%emt 0:00:08]} 33. Na4 {[%emt 0:00:06]} Bd8 {[%emt 0:00:13]} (33... Bc7 $11 {remains equal.}) 34. Nxe5 $16 {[%emt 0:00:03]} Bf6 {[%emt 0:00:12] [#]} (34... f6 $16) 35. Nf3 {[%emt 0:00:05] Pair of Knights!} (35. Nd7 $1 $18 {[%cal Rd7f6]} Bg5 36. Nac5) 35... Nb3 {[%emt 0:00:08]} (35... Nxf3 $16 36. Kxf3 Bd4) 36. Nb6 {[%emt 0:00:08]} (36. e5 $18 Be7 37. Ke3) 36... Nd4 $2 {[%emt 0:00:04][%mdl 8192]} (36... Bb2 $16 37. Nd7 Na5) 37. Nd7 $18 {[%emt 0:00:04]} Bh8 {[%emt 0:00:03]} 38. e5 $2 {[%emt 0:00:03]} (38. f6 $18 Ne6 39. e5) 38... Nxf5 $14 {[%emt 0:00:02]} 39. Nb8 {[%emt 0:00:12]} Ne7 {[%emt 0:00:05]} 40. Ke3 {[%emt 0:00:02]} Kf8 {[%emt 0:00:02] [#]} ({Better is} 40... f6 $1 $14) 41. Ke4 {[%emt 0:00:02]} (41. Kd4 $1 $16) 41... Ke8 {[%emt 0:00:01]} 42. Nd4 {[%emt 0:00:01]} (42. Ng5 $5 {[%cal Rg5h7]}) 42... h5 $2 {[%emt 0:00:04]} ({Much less strong is} 42... c5 43. Nf3 $16) (42... Ng6 $1 $11 {and Black stays safe.}) 43. Nbxc6 $18 {[%emt 0:00:02]} Nxc6 {[%emt 0:00:01]} (43... Ng6 44. Nf3 Kd7) 44. Nxc6 {[%emt 0:00:01] KB-KN} Kd7 {[%emt 0:00:01]} 45. Nd4 {[%emt 0:00:01]} Bg7 {[%emt 0:00:03]} 46. Kd5 {[%emt 0:00:02] Threatening mate with Nf5.} Bf8 {[%emt 0:00:02]} 47. c5 {[%emt 0:00:01][%cal Bc4c5,Bc5c6][%mdl 32]} Kc7 {[%emt 0:00:02]} 48. c6 {[%emt 0:00:03]} Bb4 {[%emt 0:00:04]} 49. Nb5+ {[%emt 0:00:03]} Kc8 {[%emt 0:00:02]} 50. e6 $2 {[%emt 0:00:01]} (50. Nd6+ {mates} Kc7 51. Nxf7 Bc3 52. e6 Bb4 53. Nh6 Bf8 54. Nf5 Kd8 55. e7+ Bxe7 56. Nxe7) 50... fxe6+ $16 {[%emt 0:00:02]} 51. Kxe6 {[%emt 0:00:01] Weighted Error Value: White=0.61/Black=0.82} 1-0

[Event "Queens Festival Europe 2022"]
[Site "Tornelo"]
[Date "2022.06.19"]
[Round "3.5"]
[White "Gjergji, Rozana"]
[Black "Arora, Tashika"]
[Result "1-0"]
[ECO "C92"]
[WhiteElo "1920"]
[BlackElo "1822"]
[Annotator "NA RC"]
[PlyCount "99"]
[EventDate "2022.06.19"]
[EventType "swiss"]
[EventCountry "NET"]
[SourceTitle "playchess.com"]
[Source "ChessBase"]
[SourceQuality "1"]
[TimeControl "180+2"]

1. e4 {[%emt 0:00:02]} e5 {[%emt 0:00:04]} 2. Nf3 {[%emt 0:00:02]} Nc6 {[%emt 0:00:02]} 3. Bb5 {[%emt 0:00:02]} a6 {[%emt 0:00:02]} 4. Ba4 {[%emt 0:00:02]} Nf6 {[%emt 0:00:02]} 5. O-O {[%emt 0:00:02]} b5 {[%emt 0:00:02]} 6. Bb3 {[%emt 0:00:03]} Be7 {[%emt 0:00:04]} 7. Re1 {[%emt 0:00:02]} d6 {[%emt 0:00:05]} 8. c3 {[%emt 0:00:02]} O-O {[%emt 0:00:02]} 9. h3 {[%emt 0:00:02]} Bb7 {[%emt 0:00:02]} 10. Bc2 {[%emt 0:00:04]} b4 {[%emt 0:00:06]} 11. d4 {[%emt 0:00:03]} exd4 {[%emt 0:00:06]} 12. cxd4 {[%emt 0:00:03]} Re8 {[%emt 0:00:04]} 13. b3 {[%emt 0:00:02]} a5 {[%emt 0:00:04]} 14. Bb2 {[%emt 0:00:03]} Na7 {[%emt 0:00:11]} 15. Nbd2 {[%emt 0:00:15]} Nb5 {[%emt 0:00:03]} 16. e5 {[%emt 0:00:06]} Nd5 {[%emt 0:00:10]} 17. Ne4 {[%emt 0:00:11]} dxe5 {[%emt 0:00:06]} 18. Nxe5 {[%emt 0:00:05]} Ndc3 {[%emt 0:00:04]} 19. Nxc3 {[%emt 0:00:13]} bxc3 {[%emt 0:00:05]} 20. Bc1 {[%emt 0:00:04]} Qxd4 {[%emt 0:00:03]} 21. Qh5 {[%emt 0:00:08]} g6 {[%emt 0:00:07]} 22. Qh6 {[%emt 0:00:03]} Bf8 {[%emt 0:00:09]} 23. Qg5 {[%emt 0:00:06]} Bg7 {[%emt 0:00:13]} 24. Bf4 {[%emt 0:00:05]} f6 {[%emt 0:00:06]} 25. Qg3 {[%emt 0:00:15]} fxe5 {[%emt 0:00:02]} 26. Be3 {[%emt 0:00:01]} Qd6 {[%emt 0:00:12]} 27. Rad1 {[%emt 0:00:03]} Qc6 {[%emt 0:00:10]} 28. Bd3 {[%emt 0:00:05]} Nd6 {[%emt 0:00:10]} 29. a4 {[%emt 0:00:06]} e4 {[%emt 0:00:02]} 30. Be2 {[%emt 0:00:04]} Nf5 {[%emt 0:00:08]} 31. Qf4 {[%emt 0:00:03]} Be5 {[%emt 0:00:25]} 32. Qg5 {[%emt 0:00:12]} h6 {[%emt 0:00:08]} 33. Bc4+ {[%emt 0:00:05]} Kh7 {[%emt 0:00:04]} 34. Qg4 {[%emt 0:00:04]} Rad8 {[%emt 0:00:27]} 35. Bb5 {[%emt 0:00:09]} Qf6 {[%emt 0:00:08]} 36. Bxe8 {[%emt 0:00:05]} Rxe8 {[%emt 0:00:01]} 37. Rd7+ {[%emt 0:00:03]} Re7 {[%emt 0:00:04]} 38. Red1 {[%emt 0:00:04]} h5 {[%emt 0:00:05]} 39. Qg5 {[%emt 0:00:09]} Qxg5 {[%emt 0:00:04]} 40. Bxg5 {[%emt 0:00:02]} Rxd7 {[%emt 0:00:02]} 41. Rxd7+ {[%emt 0:00:05]} Kg8 {[%emt 0:00:02]} 42. g4 {[%emt 0:00:03]} hxg4 {[%emt 0:00:03]} 43. hxg4 {[%emt 0:00:02]} Nd4 {[%emt 0:00:02]} 44. Bd8 {[%emt 0:00:08]} Bc6 {[%emt 0:00:04]} 45. Bg5 {[%emt 0:00:05]} Nf3+ {[%emt 0:00:02]} 46. Kf1 {[%emt 0:00:04]} Bxd7 {[%emt 0:00:02]} 47. Ke2 {[%emt 0:00:07]} Nxg5 {[%emt 0:00:03]} 48. Ke3 {[%emt 0:00:05]} Bxg4 {[%emt 0:00:03]} 49. f4 {[%emt 0:00:02]} exf3 {[%emt 0:00:02]} 50. b4 {[%emt 0:00:02]} 1-0

[Event "Queens Festival Europe 2022"]
[Site "Tornelo"]
[Date "2022.06.19"]
[Round "3.5"]
[White "Vicze, Zsofia"]
[Black "Stadlinger, Lea"]
[Result "1-0"]
[ECO "C30"]
[WhiteElo "1749"]
[BlackElo "1723"]
[Annotator "NA RC"]
[PlyCount "77"]
[EventDate "2022.06.19"]
[EventType "swiss"]
[EventCountry "NET"]
[SourceTitle "playchess.com"]
[Source "ChessBase"]
[SourceQuality "1"]
[TimeControl "180+2"]

1. e4 {[%emt 0:00:02]} e5 {[%emt 0:00:06]} 2. Bc4 {[%emt 0:00:03]} Nc6 {[%emt 0:00:02]} 3. d3 {[%emt 0:00:01]} Nf6 {[%emt 0:00:03]} 4. Nc3 {[%emt 0:00:01]} Bc5 {[%emt 0:00:02]} 5. f4 {[%emt 0:00:03]} d6 {[%emt 0:00:04]} 6. Nf3 {[%emt 0:00:02]} Ng4 {[%emt 0:00:28]} 7. Rf1 {[%emt 0:00:07]} Be3 {[%emt 0:00:20]} 8. h3 {[%emt 0:00:05]} Bxc1 {[%emt 0:00:03]} 9. Qxc1 {[%emt 0:00:05]} Nf6 {[%emt 0:00:04]} 10. f5 {[%emt 0:00:04]} Nd4 {[%emt 0:00:07]} 11. Ng5 {[%emt 0:00:09]} d5 {[%emt 0:00:12]} 12. Nxd5 {[%emt 0:00:08]} Nxd5 {[%emt 0:00:14]} 13. Bxd5 {[%emt 0:00:33]} O-O {[%emt 0:00:02]} 14. Nf3 {[%emt 0:00:12]} c6 {[%emt 0:00:05]} 15. Bb3 {[%emt 0:00:03]} Nxb3 {[%emt 0:00:03]} 16. axb3 {[%emt 0:00:02]} f6 {[%emt 0:00:06]} 17. Qd2 {[%emt 0:00:02]} Bd7 {[%emt 0:00:03]} 18. g4 {[%emt 0:00:03]} Be8 {[%emt 0:00:01]} 19. h4 {[%emt 0:00:08]} Bf7 {[%emt 0:00:07]} 20. g5 {[%emt 0:00:05]} c5 {[%emt 0:00:11]} 21. Rg1 {[%emt 0:00:29]} b5 {[%emt 0:00:04]} 22. Qh2 {[%emt 0:00:09]} c4 {[%emt 0:00:07]} 23. bxc4 {[%emt 0:00:05]} bxc4 {[%emt 0:00:03]} 24. gxf6 {[%emt 0:00:03]} Qxf6 {[%emt 0:00:07]} 25. Qxe5 {[%emt 0:00:04]} Qxe5 {[%emt 0:00:11]} 26. Nxe5 {[%emt 0:00:05]} cxd3 {[%emt 0:00:01]} 27. cxd3 {[%emt 0:00:04]} Rfd8 {[%emt 0:00:07]} 28. Ke2 {[%emt 0:00:05]} Bh5+ {[%emt 0:00:02]} 29. Ke3 {[%emt 0:00:02]} Re8 {[%emt 0:00:08]} 30. Nd7 {[%emt 0:00:06]} Kf7 {[%emt 0:00:06]} 31. Rac1 {[%emt 0:00:04]} Re7 {[%emt 0:00:05]} 32. Nc5 {[%emt 0:00:05]} Rb8 {[%emt 0:00:02]} 33. Rc2 {[%emt 0:00:06]} Rb5 {[%emt 0:00:08]} 34. Kf4 {[%emt 0:00:07]} Rc7 {[%emt 0:00:05]} 35. Rgc1 {[%emt 0:00:06]} Rb4 {[%emt 0:00:19]} 36. Ne6 {[%emt 0:00:04]} Rxc2 {[%emt 0:00:05]} 37. Rxc2 {[%emt 0:00:02]} Rb7 {[%emt 0:00:02]} 38. Ng5+ {[%emt 0:00:02]} Kg8 {[%emt 0:00:05]} 39. Rc8+ {[%emt 0:00:04]} 1-0

[Event "Queens Festival Europe 2022"]
[Site "Tornelo"]
[Date "2022.06.19"]
[Round "3.5"]
[White "Jafarova, Aysel"]
[Black "Rahimli, Ulkar"]
[Result "1-0"]
[ECO "A18"]
[WhiteElo "1481"]
[BlackElo "1268"]
[Annotator "NA RC"]
[PlyCount "87"]
[EventDate "2022.06.19"]
[EventType "swiss"]
[EventCountry "NET"]
[SourceTitle "playchess.com"]
[Source "ChessBase"]
[SourceQuality "1"]
[TimeControl "180+2"]

1. d4 {[%emt 0:00:02]} Nf6 {[%emt 0:00:08]} 2. c4 {[%emt 0:00:02]} d6 {[%emt 0:00:02]} 3. Nc3 {[%emt 0:00:06]} e6 {[%emt 0:00:03]} 4. e4 {[%emt 0:00:03]} Be7 {[%emt 0:00:02]} 5. f3 {[%emt 0:00:01]} O-O {[%emt 0:00:02]} 6. Be3 {[%emt 0:00:02]} b6 {[%emt 0:00:02]} 7. Qd2 {[%emt 0:00:02]} Bb7 {[%emt 0:00:02]} 8. Nge2 {[%emt 0:00:01]} Nbd7 {[%emt 0:00:02]} 9. g4 {[%emt 0:00:04]} c5 {[%emt 0:00:21]} 10. Ng3 {[%emt 0:00:38]} cxd4 {[%emt 0:00:33]} 11. Bxd4 {[%emt 0:00:05]} Nc5 {[%emt 0:00:11]} 12. g5 {[%emt 0:00:14]} Nfd7 {[%emt 0:00:06]} 13. h4 {[%emt 0:00:03]} f6 {[%emt 0:00:20]} 14. Qh2 {[%emt 0:00:34]} Ne5 {[%emt 0:00:14]} 15. Be2 {[%emt 0:00:10]} Ncd3+ {[%emt 0:00:08]} 16. Bxd3 {[%emt 0:00:06]} Nxf3+ {[%emt 0:00:03]} 17. Kf2 {[%emt 0:00:08]} Nxh2 {[%emt 0:00:02]} 18. Rxh2 {[%emt 0:00:01]} e5 {[%emt 0:00:05]} 19. Be3 {[%emt 0:00:03]} fxg5+ {[%emt 0:00:02]} 20. Ke2 {[%emt 0:00:19]} g4 {[%emt 0:00:02]} 21. Nf5 {[%emt 0:00:14]} Bc8 {[%emt 0:00:05]} 22. Nd5 {[%emt 0:00:08]} Bxf5 {[%emt 0:00:04]} 23. exf5 {[%emt 0:00:01]} Bf6 {[%emt 0:00:02]} 24. Be4 {[%emt 0:00:04]} h5 {[%emt 0:00:04]} 25. Nxf6+ {[%emt 0:00:04]} Qxf6 {[%emt 0:00:06]} 26. Bg5 {[%emt 0:00:03]} Rac8 {[%emt 0:00:32]} 27. Bd5+ {[%emt 0:00:07]} Kh7 {[%emt 0:00:07]} 28. Bxf6 {[%emt 0:00:02]} Rxf6 {[%emt 0:00:02]} 29. Rf1 {[%emt 0:00:04]} Rc5 {[%emt 0:00:05]} 30. Be6 {[%emt 0:00:03]} a6 {[%emt 0:00:05]} 31. Kd3 {[%emt 0:00:04]} b5 {[%emt 0:00:02]} 32. b4 {[%emt 0:00:01]} bxc4+ {[%emt 0:00:04]} 33. Bxc4 {[%emt 0:00:02]} e4+ {[%emt 0:00:02]} 34. Kd4 {[%emt 0:00:04]} Rc6 {[%emt 0:00:02]} 35. Rc2 {[%emt 0:00:07]} Rb6 {[%emt 0:00:03]} 36. a3 {[%emt 0:00:02]} g3 {[%emt 0:00:04]} 37. Rg2 {[%emt 0:00:05]} Rc6 {[%emt 0:00:03]} 38. Rxg3 {[%emt 0:00:03]} Rc8 {[%emt 0:00:07]} 39. Rfg1 {[%emt 0:00:02]} Rc7 {[%emt 0:00:03]} 40. Be6 {[%emt 0:00:03]} Rf8 {[%emt 0:00:05]} 41. Kxe4 {[%emt 0:00:02]} Re8 {[%emt 0:00:03]} 42. Kd5 {[%emt 0:00:01]} Rc2 {[%emt 0:00:02]} 43. Rxg7+ {[%emt 0:00:03]} Kh6 {[%emt 0:00:04]} 44. R1g6# {[%emt 0:00:02]} 1-0